No of Transactions,Dept_Family,Entity_Name,Cert Date,Supplier Name,Reference,Gross Amt,Group/Department,Type of Expenditure - Subjective Codes
1,DCMS,Historic England,30/03/2021,Alexander Carpentry,0040135205,"21,000.84",Corporate Services-Corporate,WIP Refurbishment Works
2,DCMS,Historic England,30/03/2021,Alexander Carpentry,0040135205,"6,138.00",Corporate Services-Corporate,WIP Refurbishment Works
3,DCMS,Historic England,02/03/2021,Allderdale Borough Council,0082005784,"54,659.00",Regions Group-North West - RD,Grants Historic Buildings
4,DCMS,Historic England,23/03/2021,Allerton Castle,0081005713,"110,047.72",Business Improvement-Grants,Grants Historic Buildings
5,DCMS,Historic England,11/03/2021,Alun Griffiths (Contractors) Ltd,0040135013,"154,809.84",Shrewsbury Flax Mill Maltings-Shrewsbury Flax Mill Maltings,Works for Heritage Buildings
6,DCMS,Historic England,25/03/2021,Alun Griffiths (Contractors) Ltd,0040135443,"336,000.00",Shrewsbury Flax Mill Maltings-Shrewsbury Flax Mill Maltings,Works for Heritage Buildings
7,DCMS,Historic England,25/03/2021,Alun Griffiths (Contractors) Ltd,0040135443,"43,191.00",Shrewsbury Flax Mill Maltings-Shrewsbury Flax Mill Maltings,Works for Heritage Buildings
8,DCMS,Historic England,26/03/2021,Archbishops' Council,0081005741,"2,000,000.00",Business Improvement-Grants,Grants Historic Buildings
9,DCMS,Historic England,25/03/2021,Avison Young (UK) Ltd,0040135346,"48,000.00",Corporate Services-Finance & Procurement Dept,Technical Advisors
10,DCMS,Historic England,30/03/2021,Barnsley Metropolitan Borough Council,0083000784,"59,381.00",Regions Group-High Str (HAZ) - Regions,Grants Area
11,DCMS,Historic England,23/03/2021,Barrow Borough Council,0083000721,"46,265.00",Regions Group-High Str (HAZ) - Regions,Grants Area
12,DCMS,Historic England,25/03/2021,Barrow Borough Council,0083000742,"25,000.00",Public Engagement-High Str (HAZ) - Public Engag,Grants Other Grants
13,DCMS,Historic England,23/03/2021,Bath and North East Somerset Council,0083000726,"51,127.00",Regions Group-High Str (HAZ) - Regions,Grants Area
14,DCMS,Historic England,23/03/2021,Bath and North East Somerset Council,0083000727,"142,359.00",Regions Group-High Str (HAZ) - Regions,Grants Area
15,DCMS,Historic England,23/03/2021,Bedford Estates 1987 Settlement,0081005708,"144,160.00",Business Improvement-Grants,Grants Historic Buildings
16,DCMS,Historic England,19/03/2021,Blackpool Council,0082005861,"305,753.00",Regions Group-North West - RD,Grants Historic Buildings
17,DCMS,Historic England,30/03/2021,Blackpool Council,0083000783,"88,164.00",Regions Group-High Str (HAZ) - Regions,Grants Area
18,DCMS,Historic England,26/03/2021,Blenheim Palace Heritage Foundation,0081005742,"105,601.00",Business Improvement-Grants,Grants Historic Buildings
19,DCMS,Historic England,04/03/2021,"BNP Paribas Real Estate, Rent / Services",0040134772,"29,997.00",Corporate Services-Office Estate,Rent - Operating Leases
20,DCMS,Historic England,04/03/2021,"BNP Paribas Real Estate, Rent / Services",0040134772,"10,187.69",Corporate Services-Office Estate,Building Service Charges
21,DCMS,Historic England,16/03/2021,Borlase Smart John Wells Trust,0082005841,"29,188.00",Regions Group-South West - RD,Grants Historic Buildings
22,DCMS,Historic England,30/03/2021,BrandPointZero Ltd,0040135429,"17,280.00",Corporate Services-Human Resources,Technical Advisors
23,DCMS,Historic England,30/03/2021,BrandPointZero Ltd,0040135429,"8,160.00",Corporate Services-Human Resources,Technical Advisors
24,DCMS,Historic England,24/03/2021,Browsholme Estate,0081005726,"61,514.56",Business Improvement-Grants,Grants Historic Buildings
25,DCMS,Historic England,22/03/2021,Burnley Borough Council,0083000702,"498,891.00",Regions Group-High Str (HAZ) - Regions,Grants Area
26,DCMS,Historic England,23/03/2021,Canal & River Trust,0081005705,"277,202.00",Business Improvement-Grants,Grants Historic Buildings
27,DCMS,Historic England,23/03/2021,Castle Howard Estate Ltd,0081005709,"122,592.00",Business Improvement-Grants,Grants Historic Buildings
28,DCMS,Historic England,23/03/2021,Catholic Trust for England and Wales,0081005706,"747,018.00",Business Improvement-Grants,Grants Historic Buildings
29,DCMS,Historic England,01/03/2021,CDW UK,0040134579,"123,683.64",Corporate Services-IMT,Network Contracts
30,DCMS,Historic England,03/03/2021,CDW UK,0040134580,"94,421.35",Corporate Services-IMT,Network Contracts
31,DCMS,Historic England,15/03/2021,CDW UK,0040134792,"30,880.80",Corporate Services-IMT,WIP Software Support
32,DCMS,Historic England,17/03/2021,CDW UK,0040135017,"88,595.32",Corporate Services-IMT,Network Contracts
33,DCMS,Historic England,17/03/2021,CDW UK,0040135018,"31,179.17",Corporate Services-IMT,Hosting
34,DCMS,Historic England,19/03/2021,CDW UK,0040135020,"43,047.54",Corporate Services-IMT,Equipment <10k
35,DCMS,Historic England,26/03/2021,CDW UK,0040135362,"49,597.50",Corporate Services-IMT,Network Contracts
36,DCMS,Historic England,31/03/2021,CDW UK,0040135499,"45,621.34",Corporate Services-IMT,Equipment <10k
37,DCMS,Historic England,18/03/2021,CET Viscount Coke Fund,0082005848,"80,000.00",Regions Group-East - RD,Grants Historic Buildings
38,DCMS,Historic England,16/03/2021,Cleveland Pools Trust,0082005833,"206,480.00",Regions Group-South West - RD,Grants Historic Buildings
39,DCMS,Historic England,16/03/2021,Cornwall Archaeological Unit,0082005840,"28,514.00",Regions Group-South West - RD,Grants Historic Buildings
40,DCMS,Historic England,04/03/2021,Cornwall Wildlife Trust,0082005797,"51,947.00",Regions Group-South West - RD,Grants Historic Buildings
41,DCMS,Historic England,26/03/2021,Council British Arch York,0081005738,"37,000.00",Business Improvement-Grants,Grants Historic Environment
42,DCMS,Historic England,26/03/2021,Council British Arch York,0081005739,"60,000.00",Business Improvement-Grants,Grants Historic Environment
43,DCMS,Historic England,31/03/2021,Coventry BID Limited,0040135527,"45,360.00",Public Engagement-Public Relations & Programmes,Other Grants
44,DCMS,Historic England,22/03/2021,Coventry City Council,0082005874,"35,200.00",Regions Group-Midlands - RD,Grants Historic Buildings
45,DCMS,Historic England,19/03/2021,Creeksea Place Events Ltd,0082005862,"239,887.00",Regions Group-East - RD,Grants Historic Buildings
46,DCMS,Historic England,12/03/2021,Croft Building and Conservation Ltd,0040135064,"559,251.60",Shrewsbury Flax Mill Maltings-Shrewsbury Flax Mill Maltings,Works for Heritage Buildings
47,DCMS,Historic England,12/03/2021,Croft Building and Conservation Ltd,0040135066,"90,142.80",Shrewsbury Flax Mill Maltings-Shrewsbury Flax Mill Maltings,Works for Heritage Buildings
48,DCMS,Historic England,12/03/2021,Croft Building and Conservation Ltd,0040135067,"167,256.00",Shrewsbury Flax Mill Maltings-Shrewsbury Flax Mill Maltings,Works for Heritage Buildings
49,DCMS,Historic England,30/03/2021,Croft Building and Conservation Ltd,0040135543,"475,609.20",Shrewsbury Flax Mill Maltings-Shrewsbury Flax Mill Maltings,Works for Heritage Buildings
50,DCMS,Historic England,31/03/2021,Croft Building and Conservation Ltd,0040135544,"42,606.00",Shrewsbury Flax Mill Maltings-Shrewsbury Flax Mill Maltings,Works for Heritage Buildings
51,DCMS,Historic England,30/03/2021,Croft Building and Conservation Ltd,0040135546,"229,392.00",Shrewsbury Flax Mill Maltings-Shrewsbury Flax Mill Maltings,Works for Heritage Buildings
52,DCMS,Historic England,25/03/2021,Culture Weston,0083000747,"29,923.00",Public Engagement-High Str (HAZ) - Public Engag,Grants Other Grants
53,DCMS,Historic England,09/03/2021,Delaval Parish Parochial Church Council,0082005809,"31,628.00",Regions Group-North East & Yorkshire - RD,Grants Historic Buildings
54,DCMS,Historic England,23/03/2021,Doddington Farms LLP,0081005711,"147,100.00",Business Improvement-Grants,Grants Historic Buildings
55,DCMS,Historic England,22/03/2021,Dunstable Town Council,0083000708,"52,142.00",Regions Group-High Str (HAZ) - Regions,Grants Area
56,DCMS,Historic England,12/03/2021,Durham County Council,0090516161,"21,168.00",Regions Group-North East & Yorkshire - RD,Grants Area
57,DCMS,Historic England,12/03/2021,Durham County Council,0090516161,"32,241.00",Regions Group-North East & Yorkshire - RD,Grants Area
58,DCMS,Historic England,11/03/2021,East Quantoxhead Estate,0082005818,"119,422.00",Regions Group-South West - RD,Grants Historic Buildings
59,DCMS,Historic England,04/03/2021,East Suffolk Council,0090516149,"46,817.00",Regions Group-East - RD,Grants Capacity Building Grants
60,DCMS,Historic England,18/03/2021,Eden District Council,0090516184,"38,463.00",Regions Group-North West - RD,Grants Area
61,DCMS,Historic England,25/03/2021,EDF  ,0020074354,"27,110.92",Corporate Services-Corporate,Electricity
62,DCMS,Historic England,03/03/2021,Electron-X Ltd,0040134424,"1,591.20",Policy & Evidence-National Specialist Services,Plant & Equipment > 10k
63,DCMS,Historic England,03/03/2021,Electron-X Ltd,0040134424,"4,073.16",Policy & Evidence-National Specialist Services,Plant & Equipment > 10k
64,DCMS,Historic England,03/03/2021,Electron-X Ltd,0040134424,"10,870.20",Policy & Evidence-National Specialist Services,Plant & Equipment > 10k
65,DCMS,Historic England,03/03/2021,Electron-X Ltd,0040134424,"4,710.00",Policy & Evidence-National Specialist Services,Plant & Equipment > 10k
66,DCMS,Historic England,03/03/2021,Electron-X Ltd,0040134424,"9,055.20",Policy & Evidence-National Specialist Services,Planned Maintenance
67,DCMS,Historic England,03/03/2021,Electron-X Ltd,0040134424,"8,748.00",Policy & Evidence-National Specialist Services,Planned Maintenance
68,DCMS,Historic England,22/03/2021,Elton Enterprises LLP,0081005684,"58,126.00",Business Improvement-Grants,Grants Historic Buildings
69,DCMS,Historic England,26/03/2021,Emergency Exit Arts Ltd,0083000755,"107,997.00",Public Engagement-High Str (HAZ) - Public Engag,Technical & Legal Advice External Technical Advice
70,DCMS,Historic England,19/03/2021,Ensign Communications Ltd,0040135137,"2,160.41",Corporate Services-IMT,Network Contracts
71,DCMS,Historic England,19/03/2021,Ensign Communications Ltd,0040135137,"2,159.71",Corporate Services-IMT,Network Contracts
72,DCMS,Historic England,19/03/2021,Ensign Communications Ltd,0040135137,"68,631.36",Corporate Services-IMT,Network Contracts
73,DCMS,Historic England,26/03/2021,Ensign Communications Ltd,0040135382,"40,228.56",Corporate Services-IMT,ITFM
74,DCMS,Historic England,03/03/2021,ESRI (UK) Ltd,0040134621,"252,000.00",Corporate Services-IMT,Software Maintenance
75,DCMS,Historic England,04/03/2021,Feilden Clegg Bradley Studios LLP,0040134779,"27,720.79",Shrewsbury Flax Mill Maltings-Shrewsbury Flax Mill Maltings,Fees for Professional Advice
76,DCMS,Historic England,30/03/2021,Feilden Clegg Bradley Studios LLP,0040135396,"27,212.29",Shrewsbury Flax Mill Maltings-Shrewsbury Flax Mill Maltings,Fees for Professional Advice
77,DCMS,Historic England,11/03/2021,First White Cloth Hall (Leeds) Ltd,0082005814,"50,000.00",Regions Group-North East & Yorkshire - RD,Grants Historic Buildings
78,DCMS,Historic England,25/03/2021,Fleetwood Museum Trust,0083000746,"25,000.00",Public Engagement-High Str (HAZ) - Public Engag,Grants Other Grants
79,DCMS,Historic England,24/03/2021,Forterra  Building Products Ltd,0081005715,"32,000.00",Business Improvement-Grants,Grants Historic Environment
80,DCMS,Historic England,03/03/2021,Freidman FM Ltd,0040134118,"15,571.26",Corporate Services-Facilities Management,Annual Cyclical Works-Building
81,DCMS,Historic England,03/03/2021,Freidman FM Ltd,0040134118,"1,498.31",Corporate Services-Facilities Management,Annual Cyclical Work Grounds
82,DCMS,Historic England,03/03/2021,Freidman FM Ltd,0040134118,"16,940.52",Corporate Services-Facilities Management,Annual Cyclical Work M & E
83,DCMS,Historic England,03/03/2021,Freidman FM Ltd,0040134118,"9,833.09",Corporate Services-Facilities Management,Office Cleaning
84,DCMS,Historic England,03/03/2021,Freidman FM Ltd,0040134118,"9,049.24",Corporate Services-Facilities Management,Office Security & Cash Collect
85,DCMS,Historic England,30/03/2021,Freidman FM Ltd,0040134841,"15,571.26",Corporate Services-Facilities Management,Annual Cyclical Works-Building
86,DCMS,Historic England,30/03/2021,Freidman FM Ltd,0040134841,"1,498.30",Corporate Services-Facilities Management,Annual Cyclical Work Grounds
87,DCMS,Historic England,30/03/2021,Freidman FM Ltd,0040134841,"16,940.53",Corporate Services-Facilities Management,Annual Cyclical Work M & E
88,DCMS,Historic England,30/03/2021,Freidman FM Ltd,0040134841,"9,833.09",Corporate Services-Facilities Management,Office Cleaning
89,DCMS,Historic England,30/03/2021,Freidman FM Ltd,0040134841,"9,049.24",Corporate Services-Facilities Management,Office Security & Cash Collect
90,DCMS,Historic England,22/03/2021,Friends of Friendless Churches,0081005682,"200,000.00",Business Improvement-Grants,Grants Historic Buildings
91,DCMS,Historic England,24/03/2021,Friends of Friendless Churches,0081005724,"40,000.00",Business Improvement-Grants,Grants Historic Buildings
92,DCMS,Historic England,12/03/2021,General Cemetery Company,0082005825,"115,902.00",Regions Group-London & South East - RD,Grants Historic Buildings
93,DCMS,Historic England,26/03/2021,Gloucester City Council,0083000761,"49,233.00",Regions Group-High Str (HAZ) - Regions,Grants Area
94,DCMS,Historic England,12/03/2021,Gosport Borough Council,0082005828,"82,715.00",Regions Group-London & South East - RD,Grants Historic Buildings
95,DCMS,Historic England,26/03/2021,Gosport Borough Council,0083000759,"45,760.00",Regions Group-High Str (HAZ) - Regions,Grants Area
96,DCMS,Historic England,24/03/2021,Great Yarmouth Borough Council,0083000733,"78,738.00",Regions Group-High Str (HAZ) - Regions,Grants Area
97,DCMS,Historic England,24/03/2021,GTT-EMA Ltd,0040134879,"45,662.09",Corporate Services-IMT,Network Contracts
98,DCMS,Historic England,30/03/2021,Hambleton District Council,0083000789,"59,600.00",Regions Group-High Str (HAZ) - Regions,Grants Area
99,DCMS,Historic England,24/03/2021,Harewood House Trust Ltd,0081005725,"59,225.60",Business Improvement-Grants,Grants Historic Buildings
100,DCMS,Historic England,02/03/2021,Harlow Property Management Ltd,0040134754,"54,750.00",Corporate Services-Office Estate,Rent - Operating Leases
101,DCMS,Historic England,19/03/2021,Hinckley and Bosworth Borough Council,0083000701,"60,461.00",Regions Group-High Str (HAZ) - Regions,Grants Area
102,DCMS,Historic England,24/03/2021,Historic Chapels Trust,0081005717,"53,650.00",Business Improvement-Grants,Grants Capacity Building Grants
103,DCMS,Historic England,23/03/2021,Historic Houses Foundation,0081005707,"437,851.00",Business Improvement-Grants,Grants Historic Buildings
104,DCMS,Historic England,23/03/2021,Historic Royal Palaces,0081005702,"602,646.90",Business Improvement-Grants,Grants Historic Buildings
105,DCMS,Historic England,23/03/2021,Hornet Services Sailing Club,0082005882,"135,983.00",Regions Group-London & South East - RD,Grants Historic Buildings
106,DCMS,Historic England,22/03/2021,Hull City Council,0083000711,"25,000.00",Public Engagement-High Str (HAZ) - Public Engag,Grants Other Grants
107,DCMS,Historic England,19/03/2021,In-Form Consult Ltd,0040134815,"27,900.00",Corporate Services-IMT,Fees for Professional Advice
108,DCMS,Historic England,26/03/2021,Ironbridge Gorge Museum Trust Ltd,0082005898,"29,025.00",Regions Group-Midlands - RD,Grants Historic Buildings
109,DCMS,Historic England,12/03/2021,ITSUS Consulting Ltd,0040134812,"52,200.00",Corporate Services-IMT,Network Contracts
110,DCMS,Historic England,19/03/2021,Kettering Borough Council,0083000700,"48,828.00",Regions Group-High Str (HAZ) - Regions,Grants Area
111,DCMS,Historic England,24/03/2021,Kingston upon Hull City Council,0090516196,"77,805.00",Regions Group-North East & Yorkshire - RD,Grants Area
112,DCMS,Historic England,23/03/2021,Kirklees Council,0090516192,"33,410.00",Regions Group-North East & Yorkshire - RD,Grants Area
113,DCMS,Historic England,23/03/2021,Kirklees Council,0090516192,"16,590.00",Regions Group-North East & Yorkshire - RD,Grants Area
114,DCMS,Historic England,24/03/2021,Labquip NDT Ltd,0040135079,"35,602.80",Policy & Evidence-National Specialist Services,Plant & Equipment > 10k
115,DCMS,Historic England,24/03/2021,Labquip NDT Ltd,0040135079,"4,440.00",Policy & Evidence-National Specialist Services,Plant & Equipment > 10k
116,DCMS,Historic England,24/03/2021,Labquip NDT Ltd,0040135079,"3,622.50",Policy & Evidence-National Specialist Services,Plant & Equipment > 10k
117,DCMS,Historic England,22/03/2021,Lancaster City Council,0083000704,"41,257.00",Regions Group-High Str (HAZ) - Regions,Grants Area
118,DCMS,Historic England,22/03/2021,Land Use Consultants Ltd,0040135296,"29,986.76",Business Improvement-Grants,Hist Environ Prog Projects Gra
119,DCMS,Historic England,25/03/2021,Leeds City Council,0083000741,"29,944.00",Public Engagement-High Str (HAZ) - Public Engag,Grants Other Grants
120,DCMS,Historic England,15/03/2021,Leicester City Council,0083000685,"65,493.00",Regions Group-High Str (HAZ) - Regions,Grants Area
121,DCMS,Historic England,19/03/2021,Lincoln City Council,0083000699,"128,451.00",Regions Group-High Str (HAZ) - Regions,Grants Area
122,DCMS,Historic England,02/03/2021,Lincolnshire County Council,0082005791,"38,403.00",Regions Group-Midlands - RD,Grants Historic Buildings
123,DCMS,Historic England,02/03/2021,Lincolnshire County Council,0082005792,"602,591.00",Regions Group-Midlands - RD,Grants Historic Buildings
124,DCMS,Historic England,26/03/2021,Lincolnshire County Council,0082005904,"109,193.00",Regions Group-Midlands - RD,Grants Historic Buildings
125,DCMS,Historic England,26/03/2021,Lincolnshire County Council,0082005905,"189,809.00",Regions Group-Midlands - RD,Grants Historic Buildings
126,DCMS,Historic England,12/03/2021,Little Fish (UK) Ltd,0040134844,"44,456.57",Corporate Services-IMT,Service Management Contracts
127,DCMS,Historic England,12/03/2021,Little Fish (UK) Ltd,0040134845,"72,060.80",Corporate Services-IMT,End User Contracts
128,DCMS,Historic England,26/03/2021,London Borough of Brent,0083000771,"25,000.00",Public Engagement-High Str (HAZ) - Public Engag,Grants Other Grants
129,DCMS,Historic England,11/03/2021,London Borough of Ealing Council,0082005816,"38,557.00",Regions Group-London & South East - RD,Grants Historic Buildings
130,DCMS,Historic England,19/03/2021,London Borough of Hounslow,0082005863,"204,000.00",Regions Group-London & South East - RD,Grants Historic Buildings
131,DCMS,Historic England,22/03/2021,London Borough of Southwark,0090516191,"30,000.00",Regions Group-London & South East - RD,Grants Area
132,DCMS,Historic England,23/03/2021,London Borough of Tower Hamlets,0083000724,"36,106.00",Regions Group-High Str (HAZ) - Regions,Grants Area
133,DCMS,Historic England,09/03/2021,London Diocesan Fund,0082005802,"154,454.00",Regions Group-London & South East - RD,Grants Historic Buildings
134,DCMS,Historic England,09/03/2021,London Diocesan Fund,0082005808,"256,875.00",Regions Group-London & South East - RD,Grants Historic Buildings
135,DCMS,Historic England,10/03/2021,London Parks and Gardens Trust,0090516159,"26,720.00",Regions Group-London & South East - RD,Grants Capacity Building Grants
136,DCMS,Historic England,04/03/2021,Maldon Town Council,0082005798,"27,185.00",Regions Group-East - RD,Grants Historic Buildings
137,DCMS,Historic England,08/03/2021,Martin Wieser,0020074297,"29,082.69",Policy & Evidence-National Specialist Services,Plant & Equipment > 10k
138,DCMS,Historic England,17/03/2021,Method4 Ltd,0040135115,"60,000.00",Public Engagement-Content & Marketing,System Developments <50k
139,DCMS,Historic England,11/03/2021,Microsoft Ltd,0040134859,"196,768.51",Corporate Services-IMT,Software Maintenance
140,DCMS,Historic England,11/03/2021,Microsoft Ltd,0040134861,"37,126.60",Corporate Services-IMT,Software Maintenance
141,DCMS,Historic England,25/03/2021,Mid Devon District Council,0083000748,"27,000.00",Public Engagement-High Str (HAZ) - Public Engag,Grants Other Grants
142,DCMS,Historic England,26/03/2021,Middlesbrough Council,0083000770,"29,935.00",Public Engagement-High Str (HAZ) - Public Engag,Grants Other Grants
143,DCMS,Historic England,18/03/2021,Morecambe Winter Gardens Preservation,0082005850,"133,965.00",Regions Group-North West - RD,Grants Historic Buildings
144,DCMS,Historic England,17/03/2021,Morris Hargreaves McIntyre,0040135111,"145,947.89",Policy & Evidence-Analytics,Fees for Professional Advice
145,DCMS,Historic England,22/03/2021,Plumpton Rocks Harrogate North Yorkshire,0082005872,"28,023.00",Regions Group-North East & Yorkshire - RD,Grants Historic Buildings
146,DCMS,Historic England,18/03/2021,North Park Furnace Fernhurst West Sussex,82005854,"181,270.00",Regions Group-London & South East - RD,Grants Historic Buildings
147,DCMS,Historic England,26/03/2021,Newark and Sherwood District Council,0083000758,"25,148.00",Regions Group-High Str (HAZ) - Regions,Grants Area
148,DCMS,Historic England,30/03/2021,Newport and Carisbrooke Parish Council,0083000782,"85,294.00",Regions Group-High Str (HAZ) - Regions,Grants Area
149,DCMS,Historic England,02/03/2021,Norfolk Mills and Pumps Trust,0082005787,"32,174.00",Regions Group-East - RD,Grants Historic Buildings
150,DCMS,Historic England,24/03/2021,North Norfolk District Council,0083000732,"81,043.00",Regions Group-High Str (HAZ) - Regions,Grants Area
151,DCMS,Historic England,30/03/2021,North Somerset Council,0082005913,"64,923.00",Regions Group-South West - RD,Grants Historic Buildings
152,DCMS,Historic England,23/03/2021,North Somerset Council,0083000718,"32,000.00",Regions Group-High Str (HAZ) - Regions,Grants Area
153,DCMS,Historic England,18/03/2021,North Somerset Council,0090516182,"50,000.00",Regions Group-South West - RD,Grants Area
154,DCMS,Historic England,12/03/2021,North Tuddenham Parochial Church Council,0082005827,"150,000.00",Regions Group-East - RD,Grants Historic Buildings
155,DCMS,Historic England,18/03/2021,Nottingham City Council,0090516187,"123,428.00",Regions Group-Midlands - RD,Grants Area
156,DCMS,Historic England,02/03/2021,Oxford Preservation Trust,0082005788,"50,000.00",Regions Group-London & South East - RD,Grants Historic Buildings
157,DCMS,Historic England,09/03/2021,Parochial Church Council,0082005806,"87,700.00",Regions Group-London & South East - RD,Grants Historic Buildings
158,DCMS,Historic England,09/03/2021,Parochial Church Council,0082005807,"87,700.00",Regions Group-London & South East - RD,Grants Historic Buildings
159,DCMS,Historic England,16/03/2021,PCC St Martins West Drayton,0082005839,"38,112.00",Regions Group-London & South East - RD,Grants Historic Buildings
160,DCMS,Historic England,09/03/2021,Plymouth City Council,0083000678,"45,773.00",Regions Group-High Str (HAZ) - Regions,Grants Area
161,DCMS,Historic England,23/03/2021,Plymouth City Council,0083000719,"97,589.00",Regions Group-High Str (HAZ) - Regions,Grants Area
162,DCMS,Historic England,24/03/2021,Plymouth City Council,0083000734,"25,323.00",Public Engagement-High Str (HAZ) - Public Engag,Grants Other Grants
163,DCMS,Historic England,17/03/2021,Portsmouth Naval Base Property Trust,0090516180,"53,938.00",Regions Group-London & South East - RD,Grants Other Grants
164,DCMS,Historic England,03/03/2021,Ratcliffes,0040134773,"307,500.00",Corporate Services-Office Estate,Rent - Operating Leases
165,DCMS,Historic England,30/03/2021,Reading Borough Council,0083000787,"55,550.00",Regions Group-High Str (HAZ) - Regions,Grants Area
166,DCMS,Historic England,30/03/2021,Re-Form Heritage,0082005914,"98,000.00",Regions Group-Midlands - RD,Grants Historic Buildings
167,DCMS,Historic England,25/03/2021,Rochdale Borough Council,0090516198,"42,431.00",Regions Group-North West - RD,Grants Area
168,DCMS,Historic England,23/03/2021,Royal National Lifeboat Institution,0082005881,"28,567.00",Regions Group-South West - RD,Grants Historic Buildings
169,DCMS,Historic England,18/03/2021,Sheerness Dockyard Preservation Trust,0082005851,"25,000.00",Regions Group-London & South East - RD,Grants Historic Buildings
170,DCMS,Historic England,23/03/2021,Shropshire Council,0083000720,"51,585.00",Regions Group-High Str (HAZ) - Regions,Grants Area
171,DCMS,Historic England,04/03/2021,Sibton Abbey Estate Partnership,0082005796,"25,392.00",Regions Group-East - RD,Grants Historic Buildings
172,DCMS,Historic England,23/03/2021,The Ripley Castle,0082005886,"103,062.00",Regions Group-North East & Yorkshire - RD,Grants Historic Buildings
173,DCMS,Historic England,03/03/2021,SoftwareOne UK Ltd,0040134591,"61,893.35",Corporate Services-IMT,Hosting
174,DCMS,Historic England,11/03/2021,Somerset West and Taunton Council,0082005821,"35,918.00",Regions Group-South West - RD,Grants Historic Buildings
175,DCMS,Historic England,26/03/2021,Sound UK,0083000765,"28,902.00",Public Engagement-High Str (HAZ) - Public Engag,Technical & Legal Advice External Technical Advice
176,DCMS,Historic England,19/03/2021,South Kesteven District Council,0083000698,"93,710.00",Regions Group-High Str (HAZ) - Regions,Grants Area
177,DCMS,Historic England,23/03/2021,South Somerset District Council,0083000717,"41,120.00",Regions Group-High Str (HAZ) - Regions,Grants Area
178,DCMS,Historic England,25/03/2021,Southerns Broadstock Ltd,0040134938,"33,214.20",Corporate Services-Office Estate,WIP Refurbishment Works
179,DCMS,Historic England,19/03/2021,Specialist Computer Centres plc,0040129000,"158,723.13",Corporate Services-IMT,Software Maintenance
180,DCMS,Historic England,16/03/2021,Specialist Computer Centres plc,0040135008,"-14,036.65",Corporate Services-IMT,Software Maintenance
181,DCMS,Historic England,16/03/2021,Specialist Computer Centres plc,0040135009,"-158,723.13",Corporate Services-IMT,Software Maintenance
182,DCMS,Historic England,18/03/2021,Stablewood Leisure Ltd,0082005845,"59,317.00",Regions Group-North East & Yorkshire - RD,Grants Historic Buildings
183,DCMS,Historic England,24/03/2021,Storm ID Ltd,0040135159,"25,200.00",Public Engagement-Content & Marketing,System Developments <50k
184,DCMS,Historic England,24/03/2021,Storm ID Ltd,0040135159,"3,300.00",Public Engagement-Content & Marketing,System Developments <50k
185,DCMS,Historic England,30/03/2021,Storm ID Ltd,0040135441,"28,500.00",Public Engagement-Content & Marketing,System Developments <50k
186,DCMS,Historic England,19/03/2021,Sunbelt Rentals Ltd,0040135197,"109,200.00",Policy & Evidence-National Specialist Services,Plant & Equipment > 10k
187,DCMS,Historic England,30/03/2021,Swindon Borough Council,0040135378,"40,000.00",Regions Group-South West - RD,Fees for Professional Advice
188,DCMS,Historic England,04/03/2021,Swindon Borough Council,0090516151,"42,200.00",Regions Group-South West - RD,Grants Capacity Building Grants
189,DCMS,Historic England,24/03/2021,Swindon Borough Council,0090516197,"39,221.00",Regions Group-South West - RD,Grants Capacity Building Grants
190,DCMS,Historic England,16/03/2021,Tamara Landscape Partnership Scheme,0082005836,"30,202.00",Regions Group-South West - RD,Grants Historic Buildings
191,DCMS,Historic England,12/03/2021,Taunton Deane Borough Council,0082005831,"87,105.00",Regions Group-South West - RD,Grants Historic Buildings
192,DCMS,Historic England,26/03/2021,Taunton Deane Borough Council,0082005903,"174,210.00",Regions Group-South West - RD,Grants Historic Buildings
193,DCMS,Historic England,18/03/2021,Thanet District Council,0090516183,"49,233.61",Regions Group-London & South East - RD,Grants Capacity Building Grants
194,DCMS,Historic England,18/03/2021,Thanet District Council,0090516183,"11,875.00",Regions Group-London & South East - RD,Grants Capacity Building Grants
195,DCMS,Historic England,11/03/2021,The Architectural Heritage Fund,0081005639,"200,000.00",Business Improvement-Grants,Grants Capacity Building Grants
196,DCMS,Historic England,23/03/2021,The Architectural Heritage Fund,0081005694,"1,106,790.00",Business Improvement-High Str (HAZ) - Busin Improv,Grants Historic Buildings
197,DCMS,Historic England,03/03/2021,The Arts Council of England,0081005614,"50,000.00",Business Improvement-Grants,Grants Historic Environment
198,DCMS,Historic England,26/03/2021,The Brancepeth Castle Discretionary,0081005743,"225,244.00",Business Improvement-Grants,Grants Historic Buildings
199,DCMS,Historic England,23/03/2021,The Chamberlain Highbury Trust in,0082005880,"25,000.00",Regions Group-Midlands - RD,Grants Historic Buildings
200,DCMS,Historic England,22/03/2021,The Churches Conservation Trust,0081005681,"269,009.80",Business Improvement-Grants,Grants Historic Buildings
201,DCMS,Historic England,26/03/2021,The English Heritage Trust,0081005740,"1,322,480.00",Business Improvement-Grants,Grants Historic Buildings
202,DCMS,Historic England,23/03/2021,The Hartland Heritage Trust Property,0081005712,"381,380.00",Business Improvement-Grants,Grants Historic Buildings
203,DCMS,Historic England,23/03/2021,The Landmark Trust,0081005703,"220,203.60",Business Improvement-Grants,Grants Historic Buildings
204,DCMS,Historic England,16/03/2021,The Loughborough Bellfoundry Trust,0082005837,"101,232.00",Regions Group-Midlands - RD,Grants Historic Buildings
205,DCMS,Historic England,16/03/2021,The Loughborough Bellfoundry Trust,0082005838,"101,231.00",Regions Group-Midlands - RD,Grants Historic Buildings
206,DCMS,Historic England,26/03/2021,The Loughborough Bellfoundry Trust,0082005902,"28,345.00",Regions Group-Midlands - RD,Grants Historic Buildings
207,DCMS,Historic England,23/03/2021,The National Trust,0081005704,"1,360,915.00",Business Improvement-Grants,Grants Historic Buildings
208,DCMS,Historic England,26/03/2021,The National Trust,0082005907,"25,000.00",Regions Group-South West - RD,Grants Historic Buildings
209,DCMS,Historic England,26/03/2021,The Paignton Picture House Trust,0082005906,"61,910.00",Regions Group-South West - RD,Grants Historic Buildings
210,DCMS,Historic England,24/03/2021,The Seachange Trust T/A Out There Arts,0083000737,"30,000.00",Public Engagement-High Str (HAZ) - Public Engag,Grants Other Grants
211,DCMS,Historic England,09/03/2021,Torr Vale Mills Ltd,0082005800,"148,998.00",Regions Group-Midlands - RD,Grants Historic Buildings
212,DCMS,Historic England,09/03/2021,Torr Vale Mills Ltd,0082005810,"43,487.00",Regions Group-Midlands - RD,Grants Historic Buildings
213,DCMS,Historic England,30/03/2021,Torr Vale Mills Ltd,0082005911,"49,666.00",Regions Group-Midlands - RD,Grants Historic Buildings
214,DCMS,Historic England,29/03/2021,Tyldesley CIC,0083000778,"115,307.00",Regions Group-High Str (HAZ) - Regions,Grants Area
215,DCMS,Historic England,03/03/2021,University College London,0081005610,"55,000.00",Business Improvement-Grants,Grants Historic Environment
216,DCMS,Historic England,16/03/2021,University of Leicester,0040134933,"36,000.00",Regions Group-Midlands - RD,Fees for Professional Advice
217,DCMS,Historic England,12/03/2021,Urban Splash (Melville) Ltd,0082005832,"136,951.00",Regions Group-South West - RD,Grants Historic Buildings
218,DCMS,Historic England,23/03/2021,Urban Splash (Melville) Ltd,0082005884,"107,604.00",Regions Group-South West - RD,Grants Historic Buildings
219,DCMS,Historic England,18/03/2021,Urban Splash Yorkshire Ltd,0082005855,"41,760.00",Regions Group-North East & Yorkshire - RD,Grants Historic Buildings
220,DCMS,Historic England,12/03/2021,Vodafone Corporate Ltd,0040134829,"35,280.15",Corporate Services-IMT,Telephone and Communications
221,DCMS,Historic England,24/03/2021,Vodafone Corporate Ltd,0040135308,"34,773.42",Corporate Services-IMT,Telephone and Communications
222,DCMS,Historic England,02/03/2021,Waltham Forest Council,0082005789,"118,000.00",Regions Group-London & South East - RD,Grants Historic Buildings
223,DCMS,Historic England,23/03/2021,Wentworth Woodhouse Preservation Trust,0081005710,"66,240.00",Business Improvement-Grants,Grants Historic Buildings
224,DCMS,Historic England,11/03/2021,Wentworth Woodhouse Preservation Trust,0082005819,"360,000.00",Regions Group-North East & Yorkshire - RD,Grants Historic Buildings
225,DCMS,Historic England,11/03/2021,Wentworth Woodhouse Preservation Trust,0082005823,"91,000.00",Regions Group-North East & Yorkshire - RD,Grants Historic Buildings
226,DCMS,Historic England,24/03/2021,Wessex Archaeology Ltd,0040135244,"75,000.00",Business Improvement-Grants,Maritime Commissions
227,DCMS,Historic England,22/03/2021,West Lancashire Borough Council,0083000703,"158,993.00",Regions Group-High Str (HAZ) - Regions,Grants Area
228,DCMS,Historic England,09/03/2021,West Suffolk Council,0082005801,"31,981.00",Regions Group-East - RD,Grants Historic Buildings
229,DCMS,Historic England,17/03/2021,Western Computer Group Ltd,0040135033,"58,935.60",Corporate Services-IMT,Equipment <10k
230,DCMS,Historic England,19/03/2021,Western Computer Group Ltd,0040135056,"101,226.00",Corporate Services-IMT,Equipment <10k
231,DCMS,Historic England,26/03/2021,Whitfield Tabernacle Trust,0082005897,"96,501.00",Regions Group-South West - RD,Grants Historic Buildings
232,DCMS,Historic England,23/03/2021,Wigan Council,0083000723,"108,646.00",Regions Group-High Str (HAZ) - Regions,Grants Area
233,DCMS,Historic England,24/03/2021,Wigan Council,0083000735,"30,000.00",Public Engagement-High Str (HAZ) - Public Engag,Grants Other Grants
234,DCMS,Historic England,10/03/2021,Wild Rice Films Ltd,0040134827,"41,649.48",Public Engagement-Public Engagement Centre,Marketing Creative
235,DCMS,Historic England,30/03/2021,Wild Rice Films Ltd,0040135442,"28,350.52",Public Engagement-Public Engagement Centre,Marketing Creative
236,DCMS,Historic England,29/03/2021,Wiltshire Council,0090516208,1.50,Regions Group-South West - RD,Grants Capacity Building Grants
237,DCMS,Historic England,29/03/2021,Wiltshire Council,0090516208,"49,005.50",Regions Group-South West - RD,Grants Capacity Building Grants
238,DCMS,Historic England,23/03/2021,Woodchester Mansion Trust,0082005888,"25,313.00",Regions Group-South West - RD,Grants Historic Buildings
239,DCMS,Historic England,23/03/2021,Wyre Borough Council,0083000722,"49,125.00",Regions Group-High Str (HAZ) - Regions,Grants Area
